[Event "Rapid della Domenica"]
[Site "Chess.com"]
[Date "2020.05.10"]
[Round "2"]
[White "pedrak"]
[Black "Ollarov"]
[Result "0-1"]
[WhiteElo "1702"]
[BlackElo "2040"]
[TimeControl "720+3"]
[EndTime "6:49:41 PDT"]
[Termination "Ollarov ha vinto per abbandono"]

1. d4 {[%clk 0:11:23.8]} 1... Nf6 {[%clk 0:11:54.7]} 2. Nf3 {[%clk 0:11:21.1]}
2... g6 {[%clk 0:11:56]} 3. Bf4 {[%clk 0:11:21.3]} 3... Bg7 {[%clk 0:11:57.7]}
4. h3 {[%clk 0:11:22.9]} 4... d6 {[%clk 0:11:59.5]} 5. e3 {[%clk 0:11:24.2]}
5... O-O {[%clk 0:12:00.7]} 6. Be2 {[%clk 0:11:25.3]} 6... c5 {[%clk 0:12:02.9]}
7. c3 {[%clk 0:11:26.3]} 7... Nc6 {[%clk 0:12:05]} 8. O-O {[%clk 0:11:27.4]}
8... Be6 {[%clk 0:12:04.4]} 9. Nbd2 {[%clk 0:11:27.1]} 9... Qb6 {[%clk
0:12:04.1]} 10. b3 {[%clk 0:11:17.4]} 10... cxd4 {[%clk 0:10:52.1]} 11. cxd4
{[%clk 0:10:54.7]} 11... Nd5 {[%clk 0:08:02.9]} 12. Nc4 {[%clk 0:10:35.2]} 12...
Qd8 {[%clk 0:08:02.8]} 13. Bg3 {[%clk 0:10:31.9]} 13... Nc3 {[%clk 0:07:57.7]}
14. Qd2 {[%clk 0:10:32.9]} 14... Nxe2+ {[%clk 0:07:59.2]} 15. Qxe2 {[%clk
0:10:34.1]} 15... b5 {[%clk 0:07:34.5]} 16. Ncd2 {[%clk 0:10:15.2]} 16... a6
{[%clk 0:07:35]} 17. Rac1 {[%clk 0:10:09.3]} 17... Rc8 {[%clk 0:07:31.4]} 18.
Ng5 {[%clk 0:09:40.6]} 18... Bd7 {[%clk 0:07:24.2]} 19. Nge4 {[%clk 0:09:26.8]}
19... f5 {[%clk 0:07:20.5]} 20. Nc3 {[%clk 0:09:10.1]} 20... Be8 {[%clk
0:07:02.4]} 21. Bh4 {[%clk 0:08:40.6]} 21... Bf7 {[%clk 0:07:01.2]} 22. Nf3
{[%clk 0:08:27.3]} 22... h6 {[%clk 0:07:00.8]} 23. Bg3 {[%clk 0:08:19.7]} 23...
Re8 {[%clk 0:06:58.6]} 24. Qd3 {[%clk 0:08:07.6]} 24... Nb4 {[%clk 0:06:48]} 25.
Qd2 {[%clk 0:07:58.6]} 25... Qb6 {[%clk 0:04:27.6]} 26. Rfd1 {[%clk 0:07:31.3]}
26... Qb7 {[%clk 0:04:15.2]} 27. Ne1 {[%clk 0:07:12.7]} 27... e5 {[%clk
0:04:10.1]} 28. Ne2 {[%clk 0:06:32.8]} 28... Nd5 {[%clk 0:03:50.7]} 29. Nf3
{[%clk 0:05:43.2]} 29... Rxc1 {[%clk 0:03:05.8]} 30. Rxc1 {[%clk 0:05:42]} 30...
g5 {[%clk 0:02:55]} 31. dxe5 {[%clk 0:05:21.6]} 31... dxe5 {[%clk 0:02:52.4]}
32. Nc3 {[%clk 0:05:02.1]} 32... Nxc3 {[%clk 0:02:37.2]} 33. Qxc3 {[%clk
0:04:56.8]} 33... f4 {[%clk 0:02:35.6]} 34. Bh2 {[%clk 0:04:49.5]} 34... e4
{[%clk 0:02:15.8]} 35. Nd4 {[%clk 0:04:50.2]} 35... b4 {[%clk 0:01:28.5]} 36.
Qc5 {[%clk 0:04:43.4]} 36... f3 {[%clk 0:01:22.9]} 37. gxf3 {[%clk 0:04:33.5]}
37... exf3 {[%clk 0:01:22.9]} 38. Nf5 {[%clk 0:04:28.4]} 38... Qd7 {[%clk
0:01:16.9]} 39. Bd6 {[%clk 0:03:28.4]} 39... Be6 {[%clk 0:00:53.2]} 40. Nxg7
{[%clk 0:03:18.7]} 40... Kxg7 {[%clk 0:00:22.7]} 41. Qc7 {[%clk 0:03:06.4]}
41... Qxc7 {[%clk 0:00:22]} 42. Rxc7+ {[%clk 0:03:07.7]} 42... Kg6 {[%clk
0:00:24]} 43. Rc6 {[%clk 0:03:06.8]} 43... Kh5 {[%clk 0:00:23.1]} 44. Kh2 {[%clk
0:03:07.5]} 44... Rd8 {[%clk 0:00:23.5]} 45. Rxa6 {[%clk 0:03:06]} 45... Bc8
{[%clk 0:00:24.5]} 46. Kg3 {[%clk 0:03:05.8]} 46... Bxa6 {[%clk 0:00:25.2]} 47.
Bxb4 {[%clk 0:03:04.7]} 47... Be2 {[%clk 0:00:23.4]} 48. a4 {[%clk 0:03:05.4]}
48... Rb8 {[%clk 0:00:25.1]} 49. Bc5 {[%clk 0:03:03.7]} 49... Rxb3 {[%clk
0:00:27]} 50. a5 {[%clk 0:03:05.2]} 50... Rb5 {[%clk 0:00:28.2]} 51. Bb6 {[%clk
0:03:07]} 51... Rb1 {[%clk 0:00:25.9]} 52. Bd4 {[%clk 0:03:03.1]} 52... Rg1+
{[%clk 0:00:26.9]} 53. Kh2 {[%clk 0:03:04.7]} 53... Rg2+ {[%clk 0:00:29.1]} 54.
Kh1 {[%clk 0:03:06.4]} 54... Rxf2 {[%clk 0:00:31.2]} 55. Kg1 {[%clk 0:03:06.7]}
55... Rf1+ {[%clk 0:00:31.7]} 56. Kh2 {[%clk 0:03:08.6]} 56... Rb1 {[%clk
0:00:30.3]} 57. Kg3 {[%clk 0:03:09.8]} 57... Rg1+ {[%clk 0:00:31.2]} 58. Kf2
{[%clk 0:03:11.1]} 58... Rg2+ {[%clk 0:00:32.7]} 59. Ke1 {[%clk 0:03:11.6]}
59... Rg3 {[%clk 0:00:34.4]} 60. e4 {[%clk 0:03:06.9]} 60... Kg6 {[%clk
0:00:34]} 61. Bf2 {[%clk 0:03:03.9]} 61... Rxh3 {[%clk 0:00:35.9]} 62. Kd2
{[%clk 0:03:04.6]} 62... Kf6 {[%clk 0:00:37.6]} 63. Ke3 {[%clk 0:03:06.3]} 63...
Ke5 {[%clk 0:00:38.5]} 64. Be1 {[%clk 0:03:08]} 64... Rh1 {[%clk 0:00:37]} 65.
Bc3+ {[%clk 0:03:09.5]} 65... Ke6 {[%clk 0:00:38.7]} 66. Kd4 {[%clk 0:03:06.6]}
66... f2 {[%clk 0:00:40.2]} 0-1

[Event "Rapid della Domenica"]
[Site "Chess.com"]
[Date "2020.05.10"]
[Round "3"]
[White "BAKR1980"]
[Black "Ollarov"]
[Result "1-0"]
[WhiteElo "1704"]
[BlackElo "1982"]
[TimeControl "720+3"]
[EndTime "7:02:13 PDT"]
[Termination "BAKR1980 ha vinto per abbandono"]

1. d4 {[%clk 0:12:02.9]} 1... Nf6 {[%clk 0:12:00.3]} 2. Nf3 {[%clk 0:11:59.9]}
2... g6 {[%clk 0:12:02.5]} 3. c4 {[%clk 0:11:57.3]} 3... Bg7 {[%clk 0:12:03.9]}
4. Nc3 {[%clk 0:11:55.3]} 4... O-O {[%clk 0:12:05.4]} 5. e4 {[%clk 0:11:49.3]}
5... d6 {[%clk 0:12:05.9]} 6. Be2 {[%clk 0:11:42.8]} 6... e5 {[%clk 0:12:06]} 7.
dxe5 {[%clk 0:11:36.7]} 7... dxe5 {[%clk 0:12:07.5]} 8. O-O {[%clk 0:11:29.5]}
8... c6 {[%clk 0:11:58.2]} 9. Qxd8 {[%clk 0:11:22.7]} 9... Rxd8 {[%clk
0:11:59.4]} 10. h3 {[%clk 0:11:17.4]} 10... Be6 {[%clk 0:12:00.3]} 11. Ng5
{[%clk 0:11:11.6]} 11... Bc8 {[%clk 0:11:55.4]} 12. Be3 {[%clk 0:11:06.2]} 12...
b6 {[%clk 0:11:53.9]} 13. Rfd1 {[%clk 0:10:59.3]} 13... Re8 {[%clk 0:11:49.2]}
14. Rd6 {[%clk 0:10:52.8]} 14... Bb7 {[%clk 0:11:49.2]} 15. Rad1 {[%clk
0:10:46.3]} 15... Na6 {[%clk 0:11:43.9]} 16. c5 {[%clk 0:10:32.7]} 16... Nxc5
{[%clk 0:11:45]} 17. Bxc5 {[%clk 0:10:26.3]} 17... bxc5 {[%clk 0:11:46.5]} 18.
Bc4 {[%clk 0:10:20.4]} 18... Rf8 {[%clk 0:11:39.9]} 19. Na4 {[%clk 0:10:14.2]}
19... h6 {[%clk 0:11:40]} 20. Nxf7 {[%clk 0:10:07.4]} 20... Rxf7 {[%clk
0:11:39.3]} 21. Nxc5 {[%clk 0:10:01.9]} 21... Rb8 {[%clk 0:11:23]} 22. Rd8+
{[%clk 0:09:54.8]} 22... Rxd8 {[%clk 0:11:16.5]} 23. Rxd8+ {[%clk 0:09:49.5]}
23... Bf8 {[%clk 0:09:56.2]} 24. Nxb7 {[%clk 0:09:43.6]} 24... Kg7 {[%clk
0:09:57.6]} 25. Bxf7 {[%clk 0:09:37.8]} 25... Kxf7 {[%clk 0:09:57.9]} 26. f3
{[%clk 0:09:31.7]} 26... g5 {[%clk 0:09:54.6]} 27. Rc8 {[%clk 0:09:23.5]} 27...
c5 {[%clk 0:09:25.6]} 28. Nxc5 {[%clk 0:09:17.3]} 28... Nh5 {[%clk 0:09:27.6]}
29. Rc7+ {[%clk 0:09:12]} 29... Ke8 {[%clk 0:09:24.9]} 30. Nd7 {[%clk
0:09:05.7]} 30... Kd8 {[%clk 0:09:19]} 31. Rxa7 {[%clk 0:09:01.8]} 31... Bd6
{[%clk 0:09:20.4]} 32. Kf1 {[%clk 0:08:56]} 32... Nf4 {[%clk 0:09:14.2]} 33. Nf6
{[%clk 0:08:50]} 33... Kc8 {[%clk 0:09:02.8]} 34. Rh7 {[%clk 0:08:43.8]} 34...
Bb4 {[%clk 0:08:47.3]} 35. Rxh6 {[%clk 0:08:37.6]} 35... g4 {[%clk 0:08:46.9]}
36. hxg4 {[%clk 0:08:32.2]} 36... Nd3 {[%clk 0:08:32.7]} 37. g5 {[%clk
0:08:23.5]} 37... Kd8 {[%clk 0:08:14.9]} 38. g6 {[%clk 0:08:16.1]} 38... Bf8
{[%clk 0:08:11.4]} 39. Rh8 {[%clk 0:08:11.2]} 39... Ke7 {[%clk 0:08:13.3]} 40.
Nd5+ {[%clk 0:08:06.1]} 1-0

[Event "Rapid della Domenica"]
[Site "Chess.com"]
[Date "2020.05.10"]
[Round "3"]
[White "OMatteoWuO"]
[Black "SanSecondoPR"]
[Result "0-1"]
[WhiteElo "1149"]
[BlackElo "1249"]
[TimeControl "720+3"]
[EndTime "7:04:33 PDT"]
[Termination "SanSecondoPR ha vinto per scaccomatto"]

1. d4 {[%clk 0:12:02.9]} 1... d5 {[%clk 0:11:59.7]} 2. c4 {[%clk 0:12:04.2]}
2... e5 {[%clk 0:11:59.5]} 3. dxe5 {[%clk 0:12:02.6]} 3... d4 {[%clk 0:12:01.1]}
4. Nf3 {[%clk 0:11:16.4]} 4... Nc6 {[%clk 0:11:59.2]} 5. Bf4 {[%clk 0:11:07.2]}
5... Be6 {[%clk 0:11:54.3]} 6. e3 {[%clk 0:10:57.4]} 6... Bb4+ {[%clk
0:11:49.7]} 7. Nbd2 {[%clk 0:10:48.5]} 7... Nge7 {[%clk 0:11:22.1]} 8. a3 {[%clk
0:10:42.5]} 8... Bxd2+ {[%clk 0:11:20.3]} 9. Nxd2 {[%clk 0:10:38.3]} 9... Ng6
{[%clk 0:11:14.7]} 10. Bg3 {[%clk 0:10:25]} 10... dxe3 {[%clk 0:11:10.8]} 11.
fxe3 {[%clk 0:10:10.4]} 11... O-O {[%clk 0:11:09.5]} 12. Be2 {[%clk 0:09:55]}
12... Ncxe5 {[%clk 0:11:05.2]} 13. Qb3 {[%clk 0:09:17.7]} 13... Qf6 {[%clk
0:10:54.1]} 14. O-O-O {[%clk 0:09:10]} 14... b5 {[%clk 0:10:47.4]} 15. Rhf1
{[%clk 0:08:22.4]} 15... Qe7 {[%clk 0:10:38.4]} 16. Qc3 {[%clk 0:07:51.5]} 16...
f6 {[%clk 0:10:15.9]} 17. Bxe5 {[%clk 0:07:15.1]} 17... Nxe5 {[%clk 0:10:08.4]}
18. cxb5 {[%clk 0:06:51.5]} 18... c6 {[%clk 0:09:57.6]} 19. b6 {[%clk
0:05:59.6]} 19... axb6 {[%clk 0:09:56.2]} 20. Bc4 {[%clk 0:05:58.9]} 20... b5
{[%clk 0:09:43.3]} 21. Bxe6+ {[%clk 0:05:52.2]} 21... Qxe6 {[%clk 0:09:41.5]}
22. Nf3 {[%clk 0:04:59.3]} 22... b4 {[%clk 0:09:34.2]} 23. Qxb4 {[%clk
0:04:06.2]} 23... Rab8 {[%clk 0:09:18.9]} 24. Qd6 {[%clk 0:03:41.6]} 24... Qa2
{[%clk 0:09:10.6]} 25. Nxe5 {[%clk 0:03:17.1]} 25... Qxb2# {[%clk 0:08:54.4]}
0-1

[Event "Rapid della Domenica"]
[Site "Chess.com"]
[Date "2020.05.10"]
[Round "3"]
[White "sergiodone"]
[Black "pedrak"]
[Result "1-0"]
[WhiteElo "1511"]
[BlackElo "1684"]
[TimeControl "720+3"]
[EndTime "7:06:27 PDT"]
[Termination "sergiodone ha vinto per abbandono"]

1. e4 {[%clk 0:12:02.9]} 1... d5 {[%clk 0:12:00.8]} 2. exd5 {[%clk 0:12:03.8]}
2... Qxd5 {[%clk 0:12:02.3]} 3. c4 {[%clk 0:12:03.7]} 3... Qd6 {[%clk
0:11:59.9]} 4. d4 {[%clk 0:12:03.2]} 4... e5 {[%clk 0:11:58.8]} 5. d5 {[%clk
0:11:56.3]} 5... f5 {[%clk 0:11:56.8]} 6. Nc3 {[%clk 0:11:41.6]} 6... Nf6 {[%clk
0:11:54.1]} 7. Be2 {[%clk 0:11:42.6]} 7... a6 {[%clk 0:11:53.2]} 8. Be3 {[%clk
0:11:31.4]} 8... b6 {[%clk 0:11:50.1]} 9. f3 {[%clk 0:11:29.5]} 9... Be7 {[%clk
0:11:47.6]} 10. Bf2 {[%clk 0:11:30.8]} 10... O-O {[%clk 0:11:48.9]} 11. Nh3
{[%clk 0:11:12.6]} 11... Bb7 {[%clk 0:11:40.8]} 12. Ng5 {[%clk 0:11:08.9]} 12...
Bc8 {[%clk 0:11:41.8]} 13. Qb3 {[%clk 0:10:50.7]} 13... h6 {[%clk 0:11:41.2]}
14. Nh3 {[%clk 0:10:50.9]} 14... Nbd7 {[%clk 0:11:39.8]} 15. O-O-O {[%clk
0:10:33.8]} 15... Nc5 {[%clk 0:11:41.1]} 16. Bxc5 {[%clk 0:10:32.2]} 16... bxc5
{[%clk 0:11:41.8]} 17. g4 {[%clk 0:10:32.8]} 17... f4 {[%clk 0:11:34.2]} 18. Nf2
{[%clk 0:10:31.9]} 18... Bd7 {[%clk 0:11:17.3]} 19. h4 {[%clk 0:10:32.6]} 19...
Rfb8 {[%clk 0:11:15.2]} 20. Qc2 {[%clk 0:10:24]} 20... Qb6 {[%clk 0:11:11.3]}
21. Nfe4 {[%clk 0:10:23.3]} 21... Nxe4 {[%clk 0:11:08.9]} 22. Nxe4 {[%clk
0:10:24]} 22... Rb7 {[%clk 0:10:59.2]} 23. b3 {[%clk 0:10:25.6]} 23... a5 {[%clk
0:10:59.1]} 24. g5 {[%clk 0:10:27.3]} 24... h5 {[%clk 0:11:00.3]} 25. g6 {[%clk
0:09:26.1]} 25... a4 {[%clk 0:11:00.1]} 26. Rd3 {[%clk 0:09:15.4]} 26... Qa6
{[%clk 0:10:40.6]} 27. Nc3 {[%clk 0:09:11]} 27... axb3 {[%clk 0:10:41.6]} 28.
axb3 {[%clk 0:09:11.7]} 28... Qa3+ {[%clk 0:10:39.3]} 29. Kd2 {[%clk 0:09:06.9]}
29... Rxb3 {[%clk 0:10:33]} 30. Rb1 {[%clk 0:08:41.7]} 30... Rab8 {[%clk
0:10:23.1]} 31. Nb5 {[%clk 0:08:32.8]} 31... Rxd3+ {[%clk 0:10:06.7]} 32. Bxd3
{[%clk 0:08:28.5]} 32... Qa5+ {[%clk 0:10:04.8]} 33. Qc3 {[%clk 0:08:18.2]}
33... Qxc3+ {[%clk 0:09:59.3]} 34. Nxc3 {[%clk 0:08:18]} 34... Rxb1 {[%clk
0:09:58.4]} 35. Nxb1 {[%clk 0:08:19.1]} 35... Bxh4 {[%clk 0:10:00]} 36. Nc3
{[%clk 0:08:19.7]} 36... Be7 {[%clk 0:09:59.6]} 37. Nb5 {[%clk 0:07:41]} 37...
Bd6 {[%clk 0:09:59.6]} 38. Nc3 {[%clk 0:07:00.9]} 38... Kf8 {[%clk 0:10:00.7]}
39. Ke2 {[%clk 0:06:46.7]} 39... Ke7 {[%clk 0:10:01.8]} 40. Kf2 {[%clk
0:06:48.2]} 40... Bh3 {[%clk 0:09:37.4]} 41. Ne4 {[%clk 0:06:35.9]} 41... Kd7
{[%clk 0:09:30.1]} 42. Kg1 {[%clk 0:06:36.3]} 42... Be7 {[%clk 0:09:26.5]} 43.
Nf2 {[%clk 0:06:25.6]} 43... Be6 {[%clk 0:08:19]} 44. dxe6+ {[%clk 0:06:25.1]}
44... Kxe6 {[%clk 0:08:20.9]} 45. Kg2 {[%clk 0:06:22.8]} 45... c6 {[%clk
0:08:06.6]} 46. Kh3 {[%clk 0:06:23.9]} 46... Bd8 {[%clk 0:08:06.9]} 47. Be4
{[%clk 0:06:22.7]} 47... Kd7 {[%clk 0:08:08]} 48. Nd3 {[%clk 0:06:20.2]} 48...
Bf6 {[%clk 0:08:09]} 49. Nxc5+ {[%clk 0:06:21.5]} 49... Kc7 {[%clk 0:08:11.2]}
50. Ne6+ {[%clk 0:06:02.2]} 50... Kd6 {[%clk 0:08:07]} 51. Nf8 {[%clk
0:05:15.6]} 51... Kc5 {[%clk 0:08:00.2]} 52. Nd7+ {[%clk 0:05:15.5]} 52... Kd6
{[%clk 0:07:59.3]} 53. Nxf6 {[%clk 0:05:17.2]} 1-0

[Event "Rapid della Domenica"]
[Site "Chess.com"]
[Date "2020.05.10"]
[Round "3"]
[White "ferrariand"]
[Black "fausto2p"]
[Result "1-0"]
[WhiteElo "1540"]
[BlackElo "1096"]
[TimeControl "720+3"]
[EndTime "7:07:54 PDT"]
[Termination "ferrariand ha vinto per scaccomatto"]

1. e4 {[%clk 0:12:02.9]} 1... e6 {[%clk 0:12:00.6]} 2. d4 {[%clk 0:11:59]} 2...
d5 {[%clk 0:12:01.8]} 3. Nd2 {[%clk 0:11:59.2]} 3... Nf6 {[%clk 0:12:01.4]} 4.
e5 {[%clk 0:11:59.6]} 4... Nfd7 {[%clk 0:12:02.7]} 5. c3 {[%clk 0:12:00.8]} 5...
c5 {[%clk 0:12:04]} 6. Bd3 {[%clk 0:12:00.7]} 6... cxd4 {[%clk 0:11:59.5]} 7.
cxd4 {[%clk 0:12:01.3]} 7... Nc6 {[%clk 0:12:00.4]} 8. Ne2 {[%clk 0:12:02.1]}
8... Qb6 {[%clk 0:11:48.8]} 9. Nf3 {[%clk 0:12:00.7]} 9... Bb4+ {[%clk
0:11:39.1]} 10. Bd2 {[%clk 0:11:57.7]} 10... Bxd2+ {[%clk 0:11:32.2]} 11. Qxd2
{[%clk 0:11:58.1]} 11... Nb4 {[%clk 0:11:28.9]} 12. b3 {[%clk 0:11:17.2]} 12...
Nxd3+ {[%clk 0:11:29.8]} 13. Qxd3 {[%clk 0:11:18.3]} 13... Qb4+ {[%clk
0:10:48.9]} 14. Qc3 {[%clk 0:11:17.8]} 14... Qxc3+ {[%clk 0:10:43.5]} 15. Nxc3
{[%clk 0:11:16.8]} 15... a6 {[%clk 0:10:40]} 16. O-O {[%clk 0:11:16.6]} 16...
O-O {[%clk 0:10:37.8]} 17. Rac1 {[%clk 0:11:17.6]} 17... b5 {[%clk 0:10:35.5]}
18. Ne2 {[%clk 0:11:07.1]} 18... f6 {[%clk 0:09:45.9]} 19. exf6 {[%clk
0:11:04.7]} 19... Nxf6 {[%clk 0:09:43.7]} 20. Ne5 {[%clk 0:11:05.5]} 20... Ne4
{[%clk 0:09:06.9]} 21. f3 {[%clk 0:10:50.8]} 21... Ng5 {[%clk 0:08:53.7]} 22.
Rc7 {[%clk 0:10:43.4]} 22... Nf7 {[%clk 0:07:09.8]} 23. Nc6 {[%clk 0:10:16.8]}
23... Nd6 {[%clk 0:06:29]} 24. Rc1 {[%clk 0:09:47.2]} 24... Nf5 {[%clk
0:06:21.7]} 25. Ne7+ {[%clk 0:09:39.8]} 25... Nxe7 {[%clk 0:06:21.3]} 26. Rxe7
{[%clk 0:09:40.7]} 26... a5 {[%clk 0:05:39.4]} 27. Rcc7 {[%clk 0:09:41.5]} 27...
Rf6 {[%clk 0:04:19.2]} 28. Rxg7+ {[%clk 0:09:37.7]} 28... Kf8 {[%clk 0:04:06.4]}
29. Rxh7 {[%clk 0:09:32]} 29... Rg6 {[%clk 0:03:33.9]} 30. Ng3 {[%clk
0:08:42.4]} 30... Rg8 {[%clk 0:03:14.4]} 31. Nh5 {[%clk 0:08:31]} 31... e5
{[%clk 0:02:58]} 32. Rhf7+ {[%clk 0:08:29.7]} 32... Ke8 {[%clk 0:02:51.5]} 33.
Nf6+ {[%clk 0:08:30.9]} 33... Kd8 {[%clk 0:02:40.2]} 34. Nxg8 {[%clk 0:08:32.4]}
34... exd4 {[%clk 0:02:39.1]} 35. Nf6 {[%clk 0:08:19.7]} 35... d3 {[%clk
0:02:27.3]} 36. Nxd5 {[%clk 0:07:44]} 36... Be6 {[%clk 0:02:21.5]} 37. Rf8#
{[%clk 0:07:40.3]} 1-0

[Event "Rapid della Domenica"]
[Site "Chess.com"]
[Date "2020.05.10"]
[Round "3"]
[White "laremaro"]
[Black "Carbon"]
[Result "1/2-1/2"]
[WhiteElo "1647"]
[BlackElo "1756"]
[TimeControl "720+3"]
[EndTime "7:08:23 PDT"]
[Termination "Patta d'accordo"]

1. e4 {[%clk 0:12:02.9]} 1... c5 {[%clk 0:11:58.4]} 2. d4 {[%clk 0:11:59.8]}
2... cxd4 {[%clk 0:11:58.9]} 3. c3 {[%clk 0:12:01.3]} 3... d3 {[%clk 0:11:43.7]}
4. Bxd3 {[%clk 0:12:01.3]} 4... Nc6 {[%clk 0:11:37.3]} 5. Nf3 {[%clk 0:12:03.6]}
5... g6 {[%clk 0:11:37.7]} 6. O-O {[%clk 0:12:04.5]} 6... Bg7 {[%clk 0:11:39.5]}
7. Qe2 {[%clk 0:12:03.9]} 7... d6 {[%clk 0:11:40.8]} 8. Rd1 {[%clk 0:12:04.8]}
8... Nf6 {[%clk 0:11:40.3]} 9. Nbd2 {[%clk 0:12:00.4]} 9... O-O {[%clk
0:11:40.9]} 10. Nf1 {[%clk 0:11:57.7]} 10... Bg4 {[%clk 0:11:40.4]} 11. h3
{[%clk 0:11:53.4]} 11... Bxf3 {[%clk 0:11:37.8]} 12. Qxf3 {[%clk 0:11:54.5]}
12... Ne5 {[%clk 0:11:31.2]} 13. Qe2 {[%clk 0:11:52.8]} 13... Nxd3 {[%clk
0:11:31.9]} 14. Qxd3 {[%clk 0:11:47]} 14... Qa5 {[%clk 0:11:30.6]} 15. Ne3
{[%clk 0:11:39.2]} 15... Qe5 {[%clk 0:11:10.8]} 16. Nd5 {[%clk 0:10:37.8]} 16...
Nxd5 {[%clk 0:11:00.5]} 17. Qxd5 {[%clk 0:10:28.7]} 17... Qxd5 {[%clk
0:10:59.3]} 18. Rxd5 {[%clk 0:10:19.6]} 18... Rfc8 {[%clk 0:10:52.2]} 19. Bg5
{[%clk 0:10:08.5]} 19... Kf8 {[%clk 0:10:42]} 20. Rad1 {[%clk 0:10:00]} 20...
Rc4 {[%clk 0:10:37.6]} 21. f3 {[%clk 0:09:59.9]} 21... Rac8 {[%clk 0:10:34]} 22.
Be3 {[%clk 0:10:01]} 22... a6 {[%clk 0:10:30.3]} 23. Bd4 {[%clk 0:09:59]} 23...
Bxd4+ {[%clk 0:10:14]} 24. R1xd4 {[%clk 0:09:51.8]} 24... Rxd4 {[%clk
0:10:07.4]} 25. Rxd4 {[%clk 0:09:53.1]} 25... Rc6 {[%clk 0:10:08.9]} 26. Kf2
{[%clk 0:09:52.5]} 26... e6 {[%clk 0:10:10.5]} 27. Ke3 {[%clk 0:09:49.3]} 27...
Ke7 {[%clk 0:10:12.3]} 28. Kd3 {[%clk 0:09:28.4]} 28... Rc5 {[%clk 0:10:09.1]}
29. Rb4 {[%clk 0:09:07.2]} 29... Rc7 {[%clk 0:09:17.8]} 30. f4 {[%clk
0:09:01.6]} 30... h5 {[%clk 0:09:12.4]} 31. h4 {[%clk 0:09:01.6]} 31... Kf6
{[%clk 0:08:56.5]} 32. g3 {[%clk 0:08:56.8]} 32... e5 {[%clk 0:08:27.6]} 33. Rc4
{[%clk 0:08:26.4]} 33... Rd7 {[%clk 0:08:19.9]} 34. Ke3 {[%clk 0:08:20.8]} 34...
d5 {[%clk 0:08:05.7]} 35. fxe5+ {[%clk 0:08:05]} 35... Kxe5 {[%clk 0:08:03.5]}
36. Rc5 {[%clk 0:06:48.2]} 36... Ke6 {[%clk 0:08:00.7]} 37. exd5+ {[%clk
0:06:33]} 37... Rxd5 {[%clk 0:08:01.1]} 38. Rxd5 {[%clk 0:05:53.7]} 38... Kxd5
{[%clk 0:08:01.7]} 39. b3 {[%clk 0:05:55.6]} 39... f6 {[%clk 0:07:55.5]} 40. c4+
{[%clk 0:05:47.6]} 40... Ke5 {[%clk 0:07:48.4]} 41. a3 {[%clk 0:05:39.8]} 41...
g5 {[%clk 0:07:48.5]} 42. c5 {[%clk 0:05:37.1]} 42... gxh4 {[%clk 0:07:47]} 43.
gxh4 {[%clk 0:05:37.4]} 43... f5 {[%clk 0:07:48.9]} 44. b4 {[%clk 0:05:39.1]}
44... f4+ {[%clk 0:05:56.8]} 45. Kf3 {[%clk 0:05:38.5]} 45... Kf5 {[%clk
0:05:56.6]} 46. a4 {[%clk 0:05:40.6]} 46... Ke5 {[%clk 0:05:55.7]} 47. b5 {[%clk
0:05:35.6]} 47... axb5 {[%clk 0:05:49.4]} 48. axb5 {[%clk 0:05:36.9]} 48... Kd5
{[%clk 0:05:48.7]} 49. c6 {[%clk 0:05:35.7]} 49... bxc6 {[%clk 0:05:48.8]} 50.
bxc6 {[%clk 0:05:37.5]} 50... Kxc6 {[%clk 0:05:49.7]} 51. Kxf4 {[%clk 0:05:40]}
51... Kd6 {[%clk 0:05:49.6]} 52. Kg5 {[%clk 0:05:42.3]} 52... Ke5 {[%clk
0:05:50]} 53. Kxh5 {[%clk 0:05:28.7]} 1/2-1/2

[Event "Rapid della Domenica"]
[Site "Chess.com"]
[Date "2020.05.10"]
[Round "3"]
[White "crippo"]
[Black "Simo2005"]
[Result "1-0"]
[WhiteElo "1509"]
[BlackElo "1638"]
[TimeControl "720+3"]
[EndTime "7:09:07 PDT"]
[Termination "crippo ha vinto per scaccomatto"]

1. e4 {[%clk 0:12:02.9]} 1... d6 {[%clk 0:11:57]} 2. Nf3 {[%clk 0:12:00.6]} 2...
Nf6 {[%clk 0:11:53]} 3. Nc3 {[%clk 0:11:57.5]} 3... g6 {[%clk 0:11:48.4]} 4. d4
{[%clk 0:11:59.3]} 4... c6 {[%clk 0:11:39.8]} 5. Bd3 {[%clk 0:11:56]} 5... Bg7
{[%clk 0:11:28.4]} 6. Bg5 {[%clk 0:11:55.8]} 6... b5 {[%clk 0:11:13.3]} 7. Qd2
{[%clk 0:11:54.8]} 7... Nbd7 {[%clk 0:10:31.4]} 8. O-O {[%clk 0:11:53.4]} 8...
Nb6 {[%clk 0:10:16.6]} 9. e5 {[%clk 0:11:46.3]} 9... dxe5 {[%clk 0:09:58.7]} 10.
dxe5 {[%clk 0:11:47.3]} 10... Nfd5 {[%clk 0:09:52.8]} 11. Bh6 {[%clk 0:11:46.1]}
11... O-O {[%clk 0:09:42.8]} 12. Bxg7 {[%clk 0:11:47.3]} 12... Kxg7 {[%clk
0:09:42.4]} 13. Nd4 {[%clk 0:11:28.3]} 13... Qc7 {[%clk 0:09:12.4]} 14. Rae1
{[%clk 0:10:42.6]} 14... Nxc3 {[%clk 0:08:28.6]} 15. bxc3 {[%clk 0:10:38.7]}
15... e6 {[%clk 0:07:08.8]} 16. f4 {[%clk 0:10:23.1]} 16... Rd8 {[%clk
0:06:22.7]} 17. f5 {[%clk 0:10:14.5]} 17... exf5 {[%clk 0:05:52.4]} 18. Qg5
{[%clk 0:09:40.9]} 18... Kh8 {[%clk 0:04:53.6]} 19. Qf6+ {[%clk 0:09:37.2]}
19... Kg8 {[%clk 0:04:49.2]} 20. e6 {[%clk 0:09:32]} 20... Bxe6 {[%clk 0:04:18]}
21. Nxe6 {[%clk 0:08:48.4]} 21... fxe6 {[%clk 0:04:04.7]} 22. Rxe6 {[%clk
0:08:48.9]} 22... Nd5 {[%clk 0:02:49.2]} 23. Qg5 {[%clk 0:08:40.8]} 23... Re8
{[%clk 0:02:35.6]} 24. Bxf5 {[%clk 0:08:33.7]} 24... Rxe6 {[%clk 0:02:16.5]} 25.
Bxe6+ {[%clk 0:08:34.8]} 25... Kh8 {[%clk 0:02:08.3]} 26. Bxd5 {[%clk
0:08:21.9]} 26... cxd5 {[%clk 0:01:59.5]} 27. Qf6+ {[%clk 0:08:21.8]} 27... Kg8
{[%clk 0:01:49.4]} 28. Qe6+ {[%clk 0:08:20.5]} 28... Kh8 {[%clk 0:01:34.7]} 29.
Kh1 {[%clk 0:08:04.3]} 29... Qxc3 {[%clk 0:01:18.1]} 30. Qxd5 {[%clk 0:08:03.7]}
30... Re8 {[%clk 0:01:08.5]} 31. Qxb5 {[%clk 0:07:57.1]} 31... Re1 {[%clk
0:00:52.6]} 32. Qb8+ {[%clk 0:07:34.8]} 32... Kg7 {[%clk 0:00:48.3]} 33. Qf8#
{[%clk 0:07:35.6]} 1-0